[Event "Late-Titled-Tuesday-Blitz-May-28-2024"]
[Site "Chess.com"]
[Date "2024.05.28"]
[Round "4"]
[White "luca_va99"]
[Black "DonMicheleCorleone"]
[Result "0-1"]
[WhiteElo "2180"]
[BlackElo "2500"]
[TimeControl "180+1"]
[EndTime "14:40:49 PDT"]
[Termination "DonMicheleCorleone won by resignation"]

1. e4 {[%clk 0:02:56.4]} 1... d5 {[%clk 0:03:00.2]} 2. d4 {[%clk 0:02:55.1]}
2... dxe4 {[%clk 0:02:59.5]} 3. Nc3 {[%clk 0:02:54.9]} 3... Nf6 {[%clk
0:02:59.7]} 4. Bg5 {[%clk 0:02:55]} 4... Nbd7 {[%clk 0:02:58.7]} 5. f3 {[%clk
0:02:52.7]} 5... exf3 {[%clk 0:02:58.2]} 6. Qxf3 {[%clk 0:02:52.5]} 6... e6
{[%clk 0:02:58.3]} 7. O-O-O {[%clk 0:02:52.2]} 7... c6 {[%clk 0:02:58.4]} 8. Bc4
{[%clk 0:02:38.8]} 8... Be7 {[%clk 0:02:58.5]} 9. Nge2 {[%clk 0:02:34.6]} 9...
O-O {[%clk 0:02:58.2]} 10. Rhf1 {[%clk 0:02:23]} 10... Nd5 {[%clk 0:02:48.3]}
11. Bxe7 {[%clk 0:02:21.3]} 11... Qxe7 {[%clk 0:02:48.6]} 12. Rde1 {[%clk
0:02:07.1]} 12... Qg5+ {[%clk 0:02:46.8]} 13. Kb1 {[%clk 0:02:05]} 13... Ne3
{[%clk 0:02:46.9]} 14. Bd3 {[%clk 0:01:54.6]} 14... Nxf1 {[%clk 0:02:45.9]} 15.
Rxf1 {[%clk 0:01:55.5]} 15... Nf6 {[%clk 0:02:44]} 16. Nf4 {[%clk 0:01:39.4]}
16... Bd7 {[%clk 0:02:43]} 17. h4 {[%clk 0:01:31.9]} 17... Qa5 {[%clk
0:02:42.2]} 18. g4 {[%clk 0:01:27.5]} 18... e5 {[%clk 0:02:42.8]} 19. dxe5
{[%clk 0:01:04.2]} 19... Bxg4 {[%clk 0:02:42.4]} 20. Qg3 {[%clk 0:00:53.8]}
20... Qxe5 {[%clk 0:02:41.3]} 21. Re1 {[%clk 0:00:51.7]} 21... Qd6 {[%clk
0:02:36.2]} 22. Rg1 {[%clk 0:00:36.8]} 22... Rae8 {[%clk 0:02:33.3]} 23. a3
{[%clk 0:00:32.1]} 23... b5 {[%clk 0:02:28.3]} 24. Nh5 {[%clk 0:00:29.3]} 24...
Qxg3 {[%clk 0:02:24.8]} 25. Nxf6+ {[%clk 0:00:29.7]} 25... gxf6 {[%clk
0:02:25.1]} 26. Rxg3 {[%clk 0:00:30.2]} 26... h5 {[%clk 0:02:24.1]} 27. Ne4
{[%clk 0:00:29.6]} 27... Kg7 {[%clk 0:02:22.5]} 28. Nd6 {[%clk 0:00:26.1]} 28...
Re1+ {[%clk 0:02:21.6]} 29. Ka2 {[%clk 0:00:25.8]} 29... Kh6 {[%clk 0:02:15.4]}
30. Nf5+ {[%clk 0:00:20.3]} 30... Bxf5 {[%clk 0:02:15.7]} 31. Bxf5 {[%clk
0:00:21.2]} 31... Re5 {[%clk 0:02:15.4]} 32. Bd3 {[%clk 0:00:20.8]} 32... f5
{[%clk 0:02:15.8]} 33. Rf3 {[%clk 0:00:21.2]} 33... Kg6 {[%clk 0:02:15.3]} 34.
Rg3+ {[%clk 0:00:20.7]} 34... Kf6 {[%clk 0:02:15.3]} 35. Rg5 {[%clk 0:00:21]}
35... f4 {[%clk 0:02:15.6]} 36. Rg2 {[%clk 0:00:18.2]} 36... Rd8 {[%clk
0:02:10]} 37. Rf2 {[%clk 0:00:18.1]} 37... Rd4 {[%clk 0:02:07.7]} 38. Kb3 {[%clk
0:00:15.9]} 38... Re3 {[%clk 0:02:07.4]} 39. Kc3 {[%clk 0:00:15.6]} 39... c5
{[%clk 0:02:06.1]} 40. b4 {[%clk 0:00:15]} 40... Ke5 {[%clk 0:02:00.6]} 41. bxc5
{[%clk 0:00:14.5]} 41... Rc4+ {[%clk 0:02:01]} 42. Kb3 {[%clk 0:00:06.6]} 42...
Rxc5 {[%clk 0:02:01.3]} 43. Kb4 {[%clk 0:00:07.1]} 43... Rd5 {[%clk 0:01:59.3]}
44. Bxb5 {[%clk 0:00:06.5]} 44... a5+ {[%clk 0:01:51.6]} 45. Kxa5 {[%clk
0:00:02.9]} 45... Rxa3+ {[%clk 0:01:51.3]} 46. Kb4 {[%clk 0:00:03.6]} 46... Re3
{[%clk 0:01:48.5]} 47. c4 {[%clk 0:00:04.1]} 47... Rd1 {[%clk 0:01:46.7]} 48.
Bc6 {[%clk 0:00:04.1]} 48... Rb1+ {[%clk 0:01:45.2]} 49. Kc5 {[%clk 0:00:04.1]}
49... Rc1 {[%clk 0:01:43.3]} 50. Bd5 {[%clk 0:00:04.2]} 50... f5 {[%clk
0:01:43.5]} 51. Kc6 {[%clk 0:00:03.2]} 51... Re4 {[%clk 0:01:40.2]} 52. Kc5
{[%clk 0:00:01.2]} 52... Rc3 {[%clk 0:01:37.1]} 53. Rf1 {[%clk 0:00:01]} 53...
Re2 {[%clk 0:01:34]} 54. Kb4 {[%clk 0:00:01]} 54... Rcc2 {[%clk 0:01:30.8]} 55.
Bf3 {[%clk 0:00:01]} 55... Rb2+ {[%clk 0:01:28.6]} 56. Kc5 {[%clk 0:00:01]}
56... Rf2 {[%clk 0:01:24.3]} 57. Re1+ {[%clk 0:00:01]} 57... Kf6 {[%clk
0:01:24.4]} 58. Bxh5 {[%clk 0:00:01.7]} 58... f3 {[%clk 0:01:22.7]} 59. Re3
{[%clk 0:00:01.3]} 59... Rh2 {[%clk 0:01:01]} 60. Bxf3 {[%clk 0:00:01.9]} 60...
Rxh4 {[%clk 0:01:00.1]} 61. Rd3 {[%clk 0:00:02.3]} 61... Rh3 {[%clk 0:00:54.3]}
62. Kd4 {[%clk 0:00:01.8]} 62... Rf2 {[%clk 0:00:52.2]} 63. Be2 {[%clk 0:00:01]}
63... Rxd3+ {[%clk 0:00:45.3]} 64. Bxd3 {[%clk 0:00:01.9]} 64... Ke6 {[%clk
0:00:32.1]} 65. c5 {[%clk 0:00:02.4]} 65... Rf4+ {[%clk 0:00:30.9]} 66. Ke3
{[%clk 0:00:02.5]} 66... Rb4 {[%clk 0:00:27.2]} 67. c6 {[%clk 0:00:02.7]} 67...
f4+ {[%clk 0:00:06]} 68. Kf3 {[%clk 0:00:02.5]} 68... Kd6 {[%clk 0:00:06.5]} 69.
Be4 {[%clk 0:00:01.9]} 69... Ra4 {[%clk 0:00:04.4]} 70. Kxf4 {[%clk 0:00:01.8]}
70... Ra1 {[%clk 0:00:05.2]} 71. Bf3 {[%clk 0:00:01.8]} 71... Re1 {[%clk
0:00:05]} 72. Kg3 {[%clk 0:00:02.2]} 72... Re7 {[%clk 0:00:04.9]} 73. Kf2 {[%clk
0:00:02.9]} 73... Rf7 {[%clk 0:00:05.4]} 74. Kg3 {[%clk 0:00:03.5]} 74... Kc7
{[%clk 0:00:05.6]} 75. Kf2 {[%clk 0:00:03.7]} 75... Re7 {[%clk 0:00:06.5]} 76.
Kg2 {[%clk 0:00:03.8]} 76... Rg7+ {[%clk 0:00:07.4]} 77. Kf2 {[%clk 0:00:04.5]}
77... Rg8 {[%clk 0:00:08.1]} 78. Ke2 {[%clk 0:00:05.1]} 78... Rf8 {[%clk
0:00:09]} 79. Kf2 {[%clk 0:00:05.8]} 79... Rd8 {[%clk 0:00:09.5]} 80. Ke2 {[%clk
0:00:06.5]} 80... Ra8 {[%clk 0:00:10.2]} 81. Kf2 {[%clk 0:00:07.1]} 81... Ra3
{[%clk 0:00:11.1]} 82. Kg3 {[%clk 0:00:07.8]} 82... Kd6 {[%clk 0:00:11.3]} 83.
Kf2 {[%clk 0:00:08.4]} 83... Rc3 {[%clk 0:00:12]} 84. Kg2 {[%clk 0:00:08.7]}
84... Ke5 {[%clk 0:00:12.6]} 85. Kf2 {[%clk 0:00:08.2]} 85... Kf4 {[%clk
0:00:13.1]} 86. Bd5 {[%clk 0:00:07]} 86... Rc2+ {[%clk 0:00:13]} 87. Ke1 {[%clk
0:00:07.1]} 87... Ke3 {[%clk 0:00:13.4]} 88. Kd1 {[%clk 0:00:06.8]} 88... Rd2+
{[%clk 0:00:13.7]} 89. Kc1 {[%clk 0:00:07]} 89... Rxd5 {[%clk 0:00:13.9]} 90.
Kb2 {[%clk 0:00:05.5]} 90... Rc5 {[%clk 0:00:13.8]} 91. Kb3 {[%clk 0:00:06.1]}
91... Rxc6 {[%clk 0:00:13.5]} 92. Kb4 {[%clk 0:00:07]} 92... Re6 {[%clk
0:00:13.7]} 93. Kc4 {[%clk 0:00:06.9]} 93... Re4+ {[%clk 0:00:14.6]} 0-1

[Event "Late-Titled-Tuesday-Blitz-May-28-2024"]
[Site "Chess.com"]
[Date "2024.05.28"]
[Round "4"]
[White "sofaceindisguise"]
[Black "fitod"]
[Result "1-0"]
[WhiteElo "2636"]
[BlackElo "2412"]
[TimeControl "180+1"]
[EndTime "14:41:46 PDT"]
[Termination "sofaceindisguise won by checkmate"]

1. d4 {[%clk 0:02:54.9]} 1... g6 {[%clk 0:02:58.9]} 2. e4 {[%clk 0:02:53.8]}
2... Bg7 {[%clk 0:02:59.6]} 3. Nf3 {[%clk 0:02:54]} 3... d6 {[%clk 0:03:00.2]}
4. c3 {[%clk 0:02:53.6]} 4... Nf6 {[%clk 0:03:00.7]} 5. Bd3 {[%clk 0:02:54.2]}
5... O-O {[%clk 0:03:01.2]} 6. O-O {[%clk 0:02:54.9]} 6... c5 {[%clk 0:03:01.1]}
7. Re1 {[%clk 0:02:54.8]} 7... Nc6 {[%clk 0:03:00.3]} 8. d5 {[%clk 0:02:55.2]}
8... Nb8 {[%clk 0:02:53.7]} 9. c4 {[%clk 0:02:55.1]} 9... Nbd7 {[%clk
0:02:53.9]} 10. Nc3 {[%clk 0:02:53]} 10... a6 {[%clk 0:02:54]} 11. a4 {[%clk
0:02:51.7]} 11... Re8 {[%clk 0:02:54.4]} 12. h3 {[%clk 0:02:49.8]} 12... e6
{[%clk 0:02:54.7]} 13. Bf4 {[%clk 0:02:41.9]} 13... exd5 {[%clk 0:02:51.8]} 14.
cxd5 {[%clk 0:02:40.6]} 14... Qc7 {[%clk 0:02:33.8]} 15. Nd2 {[%clk 0:02:39.9]}
15... Nh5 {[%clk 0:02:32.3]} 16. Bh2 {[%clk 0:02:39]} 16... Ne5 {[%clk
0:02:32.6]} 17. Be2 {[%clk 0:02:32]} 17... Nf6 {[%clk 0:02:31.5]} 18. f4 {[%clk
0:02:32]} 18... Ned7 {[%clk 0:02:31.8]} 19. Bf3 {[%clk 0:02:31]} 19... Rb8
{[%clk 0:02:30.3]} 20. a5 {[%clk 0:02:24.9]} 20... b5 {[%clk 0:02:29.6]} 21.
axb6 {[%clk 0:02:25.1]} 21... Rxb6 {[%clk 0:02:29.6]} 22. Kh1 {[%clk 0:02:22.4]}
22... Rxb2 {[%clk 0:02:28.7]} 23. e5 {[%clk 0:02:19.6]} 23... dxe5 {[%clk
0:02:25]} 24. fxe5 {[%clk 0:02:19]} 24... Nxe5 {[%clk 0:02:25.3]} 25. Nc4 {[%clk
0:02:19.4]} 25... Nfd7 {[%clk 0:02:14.7]} 26. Nxb2 {[%clk 0:02:16.3]} 26... Qb6
{[%clk 0:02:14.5]} 27. Nba4 {[%clk 0:02:12.8]} 27... Qb4 {[%clk 0:02:14]} 28.
Rb1 {[%clk 0:02:13]} 28... Qc4 {[%clk 0:02:11.2]} 29. Be2 {[%clk 0:02:13.4]}
29... Qh4 {[%clk 0:02:08.2]} 30. Bf1 {[%clk 0:02:11.8]} 30... h5 {[%clk
0:01:50.9]} 31. d6 {[%clk 0:02:09.7]} 31... Re6 {[%clk 0:01:44.6]} 32. Nd5
{[%clk 0:02:06.1]} 32... Rxd6 {[%clk 0:01:40.9]} 33. Nab6 {[%clk 0:01:51.4]}
33... Bb7 {[%clk 0:01:30.2]} 34. Qb3 {[%clk 0:01:40.2]} 34... Nxb6 {[%clk
0:01:18.6]} 35. Nxb6 {[%clk 0:01:38.5]} 35... Re6 {[%clk 0:01:18.5]} 36. Qg3
{[%clk 0:01:36.6]} 36... Qd4 {[%clk 0:01:11.3]} 37. Rec1 {[%clk 0:01:30]} 37...
Be4 {[%clk 0:01:10.2]} 38. Rd1 {[%clk 0:01:30]} 38... Bxb1 {[%clk 0:01:08.3]}
39. Rxd4 {[%clk 0:01:29.5]} 39... cxd4 {[%clk 0:01:09.2]} 40. Nc4 {[%clk
0:01:24]} 40... d3 {[%clk 0:01:05.9]} 41. Nd2 {[%clk 0:01:16.2]} 41... Bc2
{[%clk 0:01:05.2]} 42. Qf2 {[%clk 0:01:15.6]} 42... Nd7 {[%clk 0:00:51.6]} 43.
Bf4 {[%clk 0:01:14.2]} 43... Nf6 {[%clk 0:00:43.6]} 44. Kh2 {[%clk 0:01:14.1]}
44... Bf8 {[%clk 0:00:40.2]} 45. Qd4 {[%clk 0:01:08.4]} 45... Bg7 {[%clk
0:00:26.6]} 46. Qd8+ {[%clk 0:01:04.1]} 46... Re8 {[%clk 0:00:25.5]} 47. Qd6
{[%clk 0:01:00.3]} 47... Re6 {[%clk 0:00:23.6]} 48. Qb8+ {[%clk 0:01:00]} 48...
Re8 {[%clk 0:00:22.3]} 49. Qb7 {[%clk 0:00:58.9]} 49... Re6 {[%clk 0:00:20.8]}
50. Nf3 {[%clk 0:00:58.9]} 50... Ne4 {[%clk 0:00:18.6]} 51. Qc8+ {[%clk
0:00:56.5]} 51... Kh7 {[%clk 0:00:18]} 52. Qd7 {[%clk 0:00:56.9]} 52... f6
{[%clk 0:00:07.3]} 53. Bxd3 {[%clk 0:00:56.2]} 53... Bxd3 {[%clk 0:00:06.9]} 54.
Qxd3 {[%clk 0:00:55.6]} 54... f5 {[%clk 0:00:06.5]} 55. Qd7 {[%clk 0:00:53.2]}
55... Rb6 {[%clk 0:00:06.6]} 56. Ng5+ {[%clk 0:00:52.5]} 56... Nxg5 {[%clk
0:00:06.4]} 57. Bxg5 {[%clk 0:00:53.4]} 57... a5 {[%clk 0:00:05.6]} 58. Be3
{[%clk 0:00:49.4]} 58... Rb4 {[%clk 0:00:05.1]} 59. Bd2 {[%clk 0:00:49.5]} 59...
Rd4 {[%clk 0:00:04.7]} 60. Qa4 {[%clk 0:00:42.4]} 60... Rxd2 {[%clk 0:00:05.2]}
61. Qxa5 {[%clk 0:00:42.8]} 61... Rd3 {[%clk 0:00:04.7]} 62. Qa7 {[%clk
0:00:42.8]} 62... Rd4 {[%clk 0:00:05]} 63. Kg1 {[%clk 0:00:42.8]} 63... Re4
{[%clk 0:00:05.3]} 64. Kf1 {[%clk 0:00:43.3]} 64... Kh6 {[%clk 0:00:05.8]} 65.
g3 {[%clk 0:00:43.5]} 65... h4 {[%clk 0:00:06.1]} 66. gxh4 {[%clk 0:00:41.3]}
66... Rxh4 {[%clk 0:00:05.8]} 67. Kg2 {[%clk 0:00:42.2]} 67... Rf4 {[%clk
0:00:05.8]} 68. Qe3 {[%clk 0:00:42.4]} 68... g5 {[%clk 0:00:02.1]} 69. Qe6+
{[%clk 0:00:42.8]} 69... Kh5 {[%clk 0:00:01]} 70. Qf7+ {[%clk 0:00:42.9]} 70...
Kh6 {[%clk 0:00:01]} 71. Qe7 {[%clk 0:00:40.9]} 71... Re4 {[%clk 0:00:01]} 72.
Qd7 {[%clk 0:00:39.5]} 72... Kg6 {[%clk 0:00:01]} 73. Qc6+ {[%clk 0:00:38.5]}
73... Bf6 {[%clk 0:00:01.3]} 74. Qc8 {[%clk 0:00:37.9]} 74... Rf4 {[%clk
0:00:01.6]} 75. Qg8+ {[%clk 0:00:38.1]} 75... Bg7 {[%clk 0:00:02.3]} 76. Qe8+
{[%clk 0:00:37.8]} 76... Kh6 {[%clk 0:00:02]} 77. Qf7 {[%clk 0:00:38.3]} 77...
Rh4 {[%clk 0:00:01]} 78. Qxf5 {[%clk 0:00:37.8]} 78... Rf4 {[%clk 0:00:01.5]}
79. Qe6+ {[%clk 0:00:37.8]} 79... Rf6 {[%clk 0:00:02.2]} 80. Qc8 {[%clk
0:00:37.5]} 80... Rg6 {[%clk 0:00:03.1]} 81. Kg3 {[%clk 0:00:37.4]} 81... Rf6
{[%clk 0:00:03.7]} 82. Qg8 {[%clk 0:00:36.1]} 82... Rf4 {[%clk 0:00:03]} 83.
Qe6+ {[%clk 0:00:35]} 83... Rf6 {[%clk 0:00:03.3]} 84. Qe3 {[%clk 0:00:34.7]}
84... Rf4 {[%clk 0:00:03.5]} 85. h4 {[%clk 0:00:35]} 85... Rxh4 {[%clk
0:00:03.2]} 86. Qe6+ {[%clk 0:00:35.3]} 86... Kh5 {[%clk 0:00:02.7]} 87. Qf7+
{[%clk 0:00:35.4]} 87... Kh6 {[%clk 0:00:03.2]} 88. Qe6+ {[%clk 0:00:32.6]}
88... Kh5 {[%clk 0:00:03.2]} 89. Qe2+ {[%clk 0:00:28.6]} 89... Kh6 {[%clk
0:00:03.1]} 90. Qa6+ {[%clk 0:00:28.7]} 90... Kh5 {[%clk 0:00:02.9]} 91. Kg2
{[%clk 0:00:29.6]} 91... Rf4 {[%clk 0:00:02.6]} 92. Kh3 {[%clk 0:00:29.3]} 92...
Rf6 {[%clk 0:00:02.7]} 93. Qb7 {[%clk 0:00:28.2]} 93... Kg6 {[%clk 0:00:01.8]}
94. Kg4 {[%clk 0:00:28.1]} 94... Rf4+ {[%clk 0:00:02]} 95. Kg3 {[%clk
0:00:28.1]} 95... Bf6 {[%clk 0:00:02.5]} 96. Qb1+ {[%clk 0:00:26.6]} 96... Kh6
{[%clk 0:00:01.5]} 97. Qh1+ {[%clk 0:00:20.3]} 97... Kg6 {[%clk 0:00:01.8]} 98.
Qb1+ {[%clk 0:00:18.3]} 98... Kg7 {[%clk 0:00:02.5]} 99. Qb7+ {[%clk 0:00:15]}
99... Kg6 {[%clk 0:00:02.4]} 100. Qc8 {[%clk 0:00:15.2]} 100... Kg7 {[%clk
0:00:02.7]} 101. Qd7+ {[%clk 0:00:15.1]} 101... Kg6 {[%clk 0:00:03.2]} 102. Qe8+
{[%clk 0:00:16]} 102... Kg7 {[%clk 0:00:03.6]} 103. Kh3 {[%clk 0:00:11.4]}
103... Kh6 {[%clk 0:00:03.8]} 104. Kg2 {[%clk 0:00:11.4]} 104... Kg7 {[%clk
0:00:03.8]} 105. Qe6 {[%clk 0:00:12]} 105... Kg6 {[%clk 0:00:04]} 106. Qg8+
{[%clk 0:00:11.8]} 106... Kh6 {[%clk 0:00:04.2]} 107. Kg3 {[%clk 0:00:12.7]}
107... Kh5 {[%clk 0:00:04.2]} 108. Qh7# {[%clk 0:00:12.7]} 1-0

[Event "Late-Titled-Tuesday-Blitz-May-28-2024"]
[Site "Chess.com"]
[Date "2024.05.28"]
[Round "4"]
[White "FairChess_on_YouTube"]
[Black "alexrustemov"]
[Result "1-0"]
[WhiteElo "3085"]
[BlackElo "2849"]
[TimeControl "180+1"]
[EndTime "14:42:43 PDT"]
[Termination "FairChess_on_YouTube won by resignation"]

1. d4 {[%clk 0:03:00.9]} 1... d5 {[%clk 0:02:59.9]} 2. c4 {[%clk 0:03:01]} 2...
c6 {[%clk 0:02:59.9]} 3. Nf3 {[%clk 0:03:01.1]} 3... Nf6 {[%clk 0:03:00.3]} 4.
Qc2 {[%clk 0:03:00.3]} 4... dxc4 {[%clk 0:02:59.9]} 5. e4 {[%clk 0:02:59.9]}
5... b5 {[%clk 0:02:59.1]} 6. b3 {[%clk 0:03:00]} 6... cxb3 {[%clk 0:02:58.6]}
7. axb3 {[%clk 0:03:00.9]} 7... e6 {[%clk 0:02:59]} 8. Bd3 {[%clk 0:03:00.7]}
8... a5 {[%clk 0:02:59]} 9. O-O {[%clk 0:02:55.8]} 9... Bb7 {[%clk 0:02:56.6]}
10. Bd2 {[%clk 0:02:51.6]} 10... Be7 {[%clk 0:02:46.7]} 11. Nc3 {[%clk
0:02:50.9]} 11... Na6 {[%clk 0:02:43.2]} 12. e5 {[%clk 0:02:50.3]} 12... Nb4
{[%clk 0:02:43]} 13. exf6 {[%clk 0:02:49.6]} 13... Nxc2 {[%clk 0:02:42.3]} 14.
fxe7 {[%clk 0:02:50.2]} 14... Qxe7 {[%clk 0:02:42.5]} 15. Bxc2 {[%clk
0:02:50.9]} 15... c5 {[%clk 0:02:31.2]} 16. dxc5 {[%clk 0:02:01.3]} 16... Qxc5
{[%clk 0:02:27.9]} 17. Be4 {[%clk 0:01:46.4]} 17... Bxe4 {[%clk 0:02:21.4]} 18.
Nxe4 {[%clk 0:01:47.3]} 18... Qd5 {[%clk 0:02:20.9]} 19. Nc3 {[%clk 0:01:47.3]}
19... Qxb3 {[%clk 0:01:59]} 20. Rfb1 {[%clk 0:01:45.4]} 20... Qc4 {[%clk
0:01:57.6]} 21. Rxb5 {[%clk 0:01:39.2]} 21... O-O {[%clk 0:01:51.5]} 22. Rbxa5
{[%clk 0:01:37]} 22... Rxa5 {[%clk 0:01:49.7]} 23. Rxa5 {[%clk 0:01:37.9]} 23...
h6 {[%clk 0:01:48.3]} 24. h3 {[%clk 0:01:34.2]} 24... Rd8 {[%clk 0:01:47.5]} 25.
Be1 {[%clk 0:01:26.2]} 25... Qd3 {[%clk 0:01:34.2]} 26. Ra2 {[%clk 0:01:20.7]}
26... Rc8 {[%clk 0:01:31]} 27. Rd2 {[%clk 0:01:19.7]} 27... Qc4 {[%clk
0:01:16.9]} 28. Ne2 {[%clk 0:01:18.6]} 28... Ra8 {[%clk 0:01:11.8]} 29. Ng3
{[%clk 0:01:16.6]} 29... Qc7 {[%clk 0:01:04.4]} 30. Re2 {[%clk 0:01:15.1]} 30...
Ra1 {[%clk 0:01:00.8]} 31. Kh2 {[%clk 0:01:15.2]} 31... Rc1 {[%clk 0:00:55.8]}
32. Bd2 {[%clk 0:01:11.3]} 32... Rc2 {[%clk 0:00:55.4]} 33. Bf4 {[%clk
0:01:11.1]} 33... Qc4 {[%clk 0:00:52.3]} 34. Re4 {[%clk 0:01:09.1]} 34... Qa2
{[%clk 0:00:45]} 35. Be3 {[%clk 0:01:08.8]} 35... Rc4 {[%clk 0:00:41.3]} 36. Re5
{[%clk 0:01:06.5]} 36... Rc8 {[%clk 0:00:31.9]} 37. Rb5 {[%clk 0:01:05.9]} 37...
Qc4 {[%clk 0:00:31]} 38. Rb7 {[%clk 0:01:05.7]} 38... Rc7 {[%clk 0:00:30.6]} 39.
Rb1 {[%clk 0:00:57.7]} 39... Qd5 {[%clk 0:00:27.8]} 40. Rb4 {[%clk 0:00:57]}
40... Rb7 {[%clk 0:00:27.5]} 41. Rd4 {[%clk 0:00:55.8]} 41... Qc6 {[%clk
0:00:27.1]} 42. Ne5 {[%clk 0:00:53.5]} 42... Qc7 {[%clk 0:00:25]} 43. Nf3 {[%clk
0:00:43.6]} 43... Qc6 {[%clk 0:00:23]} 44. Rg4 {[%clk 0:00:43]} 44... Kh7 {[%clk
0:00:22.7]} 45. Nh5 {[%clk 0:00:42.8]} 45... f6 {[%clk 0:00:21.9]} 46. Ng3
{[%clk 0:00:38.1]} 46... Qd5 {[%clk 0:00:20.1]} 47. Rd4 {[%clk 0:00:36.4]} 47...
Qc6 {[%clk 0:00:20.1]} 48. h4 {[%clk 0:00:36.7]} 48... Ra7 {[%clk 0:00:19.7]}
49. h5 {[%clk 0:00:36.5]} 49... Ra4 {[%clk 0:00:19.6]} 50. Rd1 {[%clk
0:00:30.7]} 50... Ra5 {[%clk 0:00:19.6]} 51. Rc1 {[%clk 0:00:29.7]} 51... Qe8
{[%clk 0:00:19.6]} 52. Rc7 {[%clk 0:00:25.3]} 52... Rxh5+ {[%clk 0:00:19.9]} 53.
Nxh5 {[%clk 0:00:25.5]} 53... Qxh5+ {[%clk 0:00:20.5]} 54. Kg1 {[%clk
0:00:26.2]} 54... e5 {[%clk 0:00:17.8]} 55. Rc4 {[%clk 0:00:23.9]} 55... Qf5
{[%clk 0:00:17.6]} 56. Nd2 {[%clk 0:00:22.6]} 56... Qd3 {[%clk 0:00:17.1]} 57.
g3 {[%clk 0:00:22.6]} 57... h5 {[%clk 0:00:17.2]} 58. Kg2 {[%clk 0:00:23.2]}
58... Kg6 {[%clk 0:00:17.3]} 59. Rh4 {[%clk 0:00:22.8]} 59... Qd5+ {[%clk
0:00:17.4]} 60. Kg1 {[%clk 0:00:20.8]} 60... Qd3 {[%clk 0:00:17.9]} 61. Rb4
{[%clk 0:00:19]} 61... Qe2 {[%clk 0:00:18]} 62. Kg2 {[%clk 0:00:18.5]} 62... Qd3
{[%clk 0:00:18.2]} 63. Rb6 {[%clk 0:00:14.5]} 63... Qd5+ {[%clk 0:00:18]} 64.
Kg1 {[%clk 0:00:14.7]} 64... Kf5 {[%clk 0:00:18.3]} 65. Rb4 {[%clk 0:00:13.3]}
65... Qd3 {[%clk 0:00:18]} 66. Nf3 {[%clk 0:00:11.7]} 66... Qd1+ {[%clk
0:00:15.3]} 67. Kg2 {[%clk 0:00:12.2]} 67... Qd5 {[%clk 0:00:15.9]} 68. Rh4
{[%clk 0:00:10.9]} 68... g5 {[%clk 0:00:15.1]} 69. Bxg5 {[%clk 0:00:10]} 69...
fxg5 {[%clk 0:00:12.6]} 70. Rxh5 {[%clk 0:00:10.3]} 70... Kf6 {[%clk 0:00:11.6]}
71. Rxg5 {[%clk 0:00:09.7]} 71... Qc6 {[%clk 0:00:09.6]} 72. Rxe5 {[%clk
0:00:09.7]} 72... Qb7 {[%clk 0:00:09.9]} 73. g4 {[%clk 0:00:09.3]} 73... Qa8
{[%clk 0:00:09.7]} 74. Kg3 {[%clk 0:00:09.7]} 74... Qa3 {[%clk 0:00:08.8]} 75.
Rf5+ {[%clk 0:00:09.7]} 75... Kg6 {[%clk 0:00:08.3]} 76. Re5 {[%clk 0:00:09.5]}
76... Qd6 {[%clk 0:00:08]} 77. Kg2 {[%clk 0:00:08.3]} 77... Qc6 {[%clk
0:00:07.7]} 78. Rf5 {[%clk 0:00:07.2]} 78... Kg7 {[%clk 0:00:07.6]} 79. Kh3
{[%clk 0:00:07.6]} 79... Qc1 {[%clk 0:00:07.1]} 80. Kg3 {[%clk 0:00:07.8]} 80...
Qf1 {[%clk 0:00:06.7]} 81. g5 {[%clk 0:00:05.4]} 81... Kg6 {[%clk 0:00:06.2]}
82. Rf6+ {[%clk 0:00:06]} 82... Kg7 {[%clk 0:00:06.6]} 83. Rf5 {[%clk
0:00:05.9]} 83... Kg6 {[%clk 0:00:06]} 84. Rf4 {[%clk 0:00:06.6]} 84... Kg7
{[%clk 0:00:06.2]} 85. Rf6 {[%clk 0:00:07.2]} 85... Qe2 {[%clk 0:00:04.8]} 86.
Nh4 {[%clk 0:00:05.3]} 86... Qf1 {[%clk 0:00:04]} 87. Nf5+ {[%clk 0:00:05.1]}
87... Kg8 {[%clk 0:00:04.6]} 88. Rg6+ {[%clk 0:00:04]} 88... Kf7 {[%clk
0:00:04.6]} 89. Rf6+ {[%clk 0:00:04.5]} 89... Kg8 {[%clk 0:00:04.7]} 90. f4
{[%clk 0:00:05]} 90... Qg1+ {[%clk 0:00:04.6]} 91. Kf3 {[%clk 0:00:05.6]} 91...
Qf1+ {[%clk 0:00:04.9]} 92. Kg4 {[%clk 0:00:06.3]} 92... Qd1+ {[%clk 0:00:04.1]}
93. Kg3 {[%clk 0:00:04.9]} 93... Qg1+ {[%clk 0:00:04.2]} 94. Kf3 {[%clk
0:00:05.5]} 94... Qf1+ {[%clk 0:00:04.6]} 95. Ke4 {[%clk 0:00:06.1]} 95... Qe2+
{[%clk 0:00:03.3]} 96. Ne3 {[%clk 0:00:06]} 96... Qe1 {[%clk 0:00:03.2]} 97. Rf5
{[%clk 0:00:05.4]} 97... Kg7 {[%clk 0:00:03.5]} 98. Re5 {[%clk 0:00:05.4]} 98...
Qb4+ {[%clk 0:00:03.6]} 99. Kf5 {[%clk 0:00:05.4]} 99... Qb1+ {[%clk 0:00:04.5]}
100. Kg4 {[%clk 0:00:05.2]} 100... Kg6 {[%clk 0:00:04.4]} 101. f5+ {[%clk
0:00:03.9]} 101... Kf7 {[%clk 0:00:04.4]} 102. g6+ {[%clk 0:00:03.8]} 102... Kf6
{[%clk 0:00:04.3]} 103. Re6+ {[%clk 0:00:04.3]} 103... Kg7 {[%clk 0:00:04.8]}
104. Re7+ {[%clk 0:00:04.8]} 104... Kf8 {[%clk 0:00:04.7]} 105. Rf7+ {[%clk
0:00:04.9]} 105... Kg8 {[%clk 0:00:05.1]} 106. Kf4 {[%clk 0:00:05.3]} 106... Qd3
{[%clk 0:00:05.3]} 107. Ng4 {[%clk 0:00:05.3]} 107... Qd4+ {[%clk 0:00:05.4]}
108. Kg5 {[%clk 0:00:05.6]} 108... Qd2+ {[%clk 0:00:05.4]} 109. Kh5 {[%clk
0:00:05.3]} 109... Qd1 {[%clk 0:00:05.3]} 110. Rh7 {[%clk 0:00:03]} 110... Qe2
{[%clk 0:00:04.2]} 111. Kg5 {[%clk 0:00:03.2]} 111... Qd2+ {[%clk 0:00:04.2]}
112. Kh4 {[%clk 0:00:03.9]} 112... Qd4 {[%clk 0:00:04]} 113. Kh5 {[%clk
0:00:03.8]} 113... Qd1 {[%clk 0:00:03.8]} 114. Rf7 {[%clk 0:00:03.6]} 114...
Qh1+ {[%clk 0:00:03.7]} 115. Kg5 {[%clk 0:00:04.3]} 115... Qc1+ {[%clk
0:00:04.2]} 116. Kh4 {[%clk 0:00:04]} 116... Qh1+ {[%clk 0:00:04]} 117. Kg3
{[%clk 0:00:04.7]} 117... Qg1+ {[%clk 0:00:04.5]} 118. Kf3 {[%clk 0:00:05.4]}
118... Qh1+ {[%clk 0:00:04.7]} 119. Kf4 {[%clk 0:00:05.3]} 119... Qc1+ {[%clk
0:00:04.2]} 120. Ne3 {[%clk 0:00:05.7]} 120... Qd2 {[%clk 0:00:04]} 121. Re7
{[%clk 0:00:05.3]} 121... Qd4+ {[%clk 0:00:04.1]} 122. Re4 {[%clk 0:00:05.9]}
122... Qd2 {[%clk 0:00:04.5]} 123. Kf3 {[%clk 0:00:05.9]} 123... Qe1 {[%clk
0:00:04.6]} 124. Ng4 {[%clk 0:00:05.9]} 124... Qf1+ {[%clk 0:00:04.5]} 125. Kg3
{[%clk 0:00:06.4]} 125... Qg1+ {[%clk 0:00:04.7]} 126. Kf4 {[%clk 0:00:06.6]}
126... Qf1+ {[%clk 0:00:04.5]} 127. Kg5 {[%clk 0:00:07.2]} 127... Qc1+ {[%clk
0:00:04.8]} 128. Re3 {[%clk 0:00:07]} 128... Qd2 {[%clk 0:00:04.8]} 129. f6
{[%clk 0:00:07.3]} 129... Qd5+ {[%clk 0:00:04.9]} 130. Re5 {[%clk 0:00:07.2]}
130... Qd2+ {[%clk 0:00:04.8]} 131. Kh5 {[%clk 0:00:07.6]} 131... Kf8 {[%clk
0:00:04.5]} 132. g7+ {[%clk 0:00:07.8]} 132... Kf7 {[%clk 0:00:04.2]} 133. Re7+
{[%clk 0:00:08.1]} 133... Kg8 {[%clk 0:00:04.1]} 134. Re8+ {[%clk 0:00:08.7]}
1-0